lending/lending_fUSD_20240710
["ID","MTS","AMOUNT","RATE_DAILY","PERIOD"]
[331687564,1720641489116,491.51450592,0.00011199,2]
[331687565,1720641490550,155.44723371,0.00011199,2]
[331687566,1720641491933,221.5048301,0.00011199,2]
[331687567,1720641494963,155.38783042,0.00011199,2]
[331687568,1720641504679,431.16964569,0.00011199,2]
[331687569,1720641504854,258.88603077,0.00011199,2]
[331687571,1720641511437,328.93658441,0.00011199,2]
[331687572,1720641553089,297.74410483,0.00011199,2]
[331687573,1720641570975,256.65,0.00010356,2]
[331687574,1720641582117,156.97678549,0.00011199,2]
[331687579,1720641841695,299.88853968,0.00011199,2]
[331687581,1720641901201,2000.0,0.00025,60]
[331687582,1720641930349,209.54468271,0.00011199,2]
[331687594,1720642067415,386.68404747,0.00011199,2]
[331687595,1720642084543,1071.37125319,0.00011199,2]
[331687596,1720642102691,6231.58383565,0.00011199,2]
[331687619,1720642208900,305.78334679,0.00011199,2]
[331687620,1720642209330,5388.63012999,0.00011199,2]
[331687622,1720642222520,243.81,0.00010162,2]
[331687623,1720642232211,-1084.96795832,0.00012013,2]
[331687624,1720642232220,-250.0,0.00012084,2]
[331687625,1720642232230,-5064.198484,0.00012114,2]
[331687630,1720642233428,-8044.011516,0.00012114,2]
[331687631,1720642233438,-433.32,0.00012117,2]
[331687632,1720642233447,-500.0,0.00012122,2]
[331687633,1720642233457,-150.0,0.00012125,2]
[331687634,1720642233466,-1972.668484,0.0001215,2]
[331687635,1720642233522,500.0,0.00027,120]
[331687744,1720642240471,-1903.751516,0.0001215,2]
[331687745,1720642240481,-171.15,0.00012153,2]
[331687746,1720642240490,-193.6,0.0001223,2]
[331687747,1720642240499,-427.19,0.00012239,2]
[331687748,1720642240508,-500.0,0.00012239,2]
[331687749,1720642240517,-200.0,0.00012252,2]
[331687750,1720642240526,-150.0,0.00012261,2]
[331687751,1720642240535,-2575.21,0.00012262,2]
[331687752,1720642240544,-5362.37,0.00012267,2]
[331687753,1720642240554,-250.0,0.00012267,2]
[331687754,1720642240563,-218.16420677,0.00012302,2]
[331687755,1720642240572,-1287.33023709,0.00012302,2]
[331687756,1720642240581,-243.81,0.00012426,2]
[331687757,1720642240590,-2645.23,0.00012962,2]
[331687758,1720642240599,-2645.23,0.00012965,2]
[331687759,1720642240608,-2645.23,0.00012969,2]
[331687760,1720642240617,-2645.23,0.00012972,2]
[331687761,1720642240626,-2645.23,0.00012976,2]
[331687762,1720642240635,-2645.23,0.00012979,2]
[331687763,1720642240644,-2645.23,0.00012983,2]
[331687764,1720642240653,-278.31377295,0.00012985,2]
[331687765,1720642240662,-2645.23,0.00012986,2]
[331687766,1720642240671,-2645.23,0.00012989,2]
[331687767,1720642240684,-2645.23,0.00012993,2]
[331687768,1720642240693,-2645.23,0.00012996,2]
[331687769,1720642240703,-2645.23,0.00013,2]
[331687770,1720642240711,-2645.23,0.00013003,2]
[331687771,1720642240721,-2645.23,0.00013007,2]
[331687772,1720642240730,-2645.23,0.0001301,2]
[331687773,1720642240739,-2645.23,0.00013013,2]
[331687774,1720642240748,-2645.23,0.00013017,2]
[331687775,1720642240757,-2645.23,0.0001302,2]
[331687776,1720642240766,-2645.23,0.00013024,2]
[331687777,1720642240776,-2645.23,0.00013027,2]
[331687778,1720642240787,-1000.0,0.00013116,2]
[331687779,1720642240796,-1216.48344249,0.00013128,2]
[331687780,1720642240806,-483.68385979,0.00013128,2]
[331687781,1720642240815,-273.286827,0.00013316,2]
[331687782,1720642240825,-183.608263,0.00013351,2]
[331687783,1720642240834,-162.629351,0.00013351,2]
[331687784,1720642240844,-255.0,0.00013352,2]
[331687785,1720642240854,-46432.0,0.00013448,2]
[331687786,1720642240864,-3086.11017581,0.00013472,2]
[331687787,1720642240873,-3627.00819881,0.00013472,2]
[331687788,1720642240882,-1631.04293426,0.00013472,2]
[331687789,1720642240892,-11831.73,0.000135,2]
[331687790,1720642240901,-430.96511855,0.00013516,2]
[331687791,1720642240910,-647.71813835,0.00013543,2]
[331687792,1720642240920,-844.6469,0.00013543,2]
[331687793,1720642240930,-19631.30329052,0.00013574,2]
[331687794,1720642240939,-689.35796756,0.00013574,2]
[331687795,1720642240950,-368.85402183,0.00013574,2]
[331687796,1720642240963,-520.96253011,0.00013574,2]
[331687797,1720642240973,-789.12290955,0.00013574,2]
[331687798,1720642240982,-219.91,0.00013699,2]
[331687799,1720642240991,-250.0,0.00013699,2]
[331687800,1720642241001,-1000.0,0.000137,2]
[331687801,1720642241010,-3960.5705,0.0001376,2]
[331687802,1720642241020,-241.40649258,0.00013799,2]
[331687803,1720642241031,-241.4064925,0.00013799,2]
[331687804,1720642241041,-241.4064925,0.00013799,2]
[331687805,1720642241050,-241.4064925,0.00013799,2]
[331687806,1720642241060,-241.4064925,0.00013799,2]
[331687807,1720642241069,-241.4064925,0.00013799,2]
[331687808,1720642241079,-241.4064925,0.00013799,2]
[331687809,1720642241088,-241.4064925,0.00013799,2]
[331687810,1720642241097,-1000.0,0.000138,2]
[331687811,1720642241107,-241.4064925,0.00013841,2]
[331687812,1720642241118,-67359.90965406,0.0001386,2]
[331687813,1720642241127,-368.79255,0.0001386,2]
[331687814,1720642241136,-500.0,0.00013887,2]
[331687815,1720642241146,-1000.0,0.00013888,2]
[331687816,1720642241155,-3000.0,0.00013888,2]
[331687817,1720642241165,-524.36809456,0.00013889,2]
[331687818,1720642241174,-220.02,0.0001389,3]
[331687819,1720642241183,-500.0,0.00013899,2]
[331687820,1720642241193,-657.79,0.00013899,2]
[331687821,1720642241202,-500.0,0.00013899,2]
[331687822,1720642241212,-500.0,0.00013899,2]
[331687823,1720642241220,-5056.79,0.00013899,2]
[331687824,1720642241230,-1720.13,0.00013899,2]
[331687825,1720642241243,-598.31433766,0.00013899,2]
[331687826,1720642241253,-8063.2126,0.000139,2]
[331687827,1720642241263,-12825.4324,0.000139,2]
[331687828,1720642241272,-821.72871135,0.000139,2]
[331687829,1720642241281,-2094.33181073,0.000139,2]
[331687830,1720642241291,-500.0,0.00013942,2]
[331687831,1720642241300,-500.0,0.00013954,2]
[331687832,1720642241309,-657.79,0.00013954,2]
[331687833,1720642241318,-500.0,0.00013954,2]
[331687834,1720642241337,-500.0,0.00013954,2]
[331687835,1720642241347,-5056.79,0.00013954,2]
[331687836,1720642241356,-1720.13,0.00013954,2]
[331687837,1720642241365,-1102.76,0.00013988,2]
[331687838,1720642241374,-700.9,0.00013988,2]
[331687839,1720642241385,-500.0,0.00013988,2]
[331687840,1720642241395,-2248.53438802,0.0001399,2]
[331687841,1720642241404,-500.0,0.00013997,2]
[331687842,1720642241413,-1149.21968823,0.00013999,5]
[331687843,1720642241424,-1149.21968823,0.00013999,5]
[331687844,1720642241434,-628.61294491,0.00013999,2]
[331687845,1720642241444,-162.54,0.00013999,2]
[331687846,1720642241453,-282.97,0.00013999,2]
[331687847,1720642241463,-210.14,0.00013999,2]
[331687848,1720642241472,-500.0,0.00013999,2]
[331687849,1720642241481,-586.0,0.00014,2]
[331687850,1720642241490,-338960.78977073,0.00014,2]
[331687851,1720642241500,-625085.55130374,0.00014,2]
[331687852,1720642241521,-235.38273328,0.00013516,2]
[331687853,1720642241532,-112.3980155,0.00014,2]
[331687854,1720642241548,-457.91561899,0.00014,2]
[331687859,1720642243187,-427.18428536,0.000139,2]
[331687860,1720642243279,-537.88,0.000139,2]
[331687862,1720642243291,-175.93571464,0.000139,2]
[331687863,1720642243301,-592.5114857,0.00014,2]
[331687865,1720642243312,-831.48450349,0.00014,2]
[331687866,1720642243327,-62465.14371386,0.00014,2]
[331687867,1720642243340,-70500.0000015,0.00014,2]
[331687868,1720642243352,-1599.08934919,0.00014,2]
[331687869,1720642243363,-746.60009089,0.00014,2]
[331687870,1720642243374,-443.07349567,0.00014,2]
[331687871,1720642243387,-180204.26649294,0.00014,2]
[331687872,1720642243398,-286.93626806,0.00014,2]
[331687873,1720642245317,-16709.9222175,0.00014,2]
[331687874,1720642245328,-2383.28505014,0.00014,2]
[331687875,1720642245339,-11505.56338237,0.00014,2]
[331687876,1720642245350,-3454.30957113,0.00014,2]
[331687877,1720642245360,-931.13278959,0.00014,2]
[331687878,1720642245371,-1255.06367634,0.00014,2]
[331687879,1720642245382,-8081.28438641,0.00014,2]
[331687880,1720642245395,-2314.14804842,0.00014,2]
[331687881,1720642245411,-748.63230573,0.00014,2]
[331687882,1720642245423,-341.65759013,0.00014,2]
[331687883,1720642245434,-7091.87739909,0.00014,2]
[331687884,1720642245444,-839.10109103,0.00014,2]
[331687885,1720642245455,-699.84660329,0.00014,2]
[331687886,1720642245466,-650.36277005,0.00014,2]
[331687887,1720642245477,-1570.55517767,0.00014,2]
[331687888,1720642245491,-3767.59533793,0.00014,2]
[331687889,1720642245502,-715.36994382,0.00014,2]
[331687893,1720642246293,-241.4064925,0.000139,2]
[331687894,1720642246303,-57198.5935235,0.00014,2]
[331687895,1720642246315,-27799.89231496,0.00014,2]
[331687896,1720642246327,-1568.3092,0.00014,2]
[331687897,1720642246338,-7858.78588056,0.00014,2]
[331687898,1720642246350,-3855.0044704,0.00014,2]
[331687899,1720642246361,-12571.36622906,0.00014,2]
[331687900,1720642246373,-743.62877208,0.00014,2]
[331687901,1720642246384,-15461.51814751,0.00014,2]
[331687902,1720642246395,-5143.26,0.00014,2]
[331687903,1720642246407,-1707.0,0.00014,2]
[331687904,1720642246418,-2353.21410219,0.00014,2]
[331687905,1720642246429,-1000.54103258,0.00014,2]
[331687906,1720642246440,-753.61,0.00014,2]
[331687907,1720642246451,-473.00854336,0.00014,2]
[331687908,1720642246468,-4349.09017876,0.00014,2]
[331687909,1720642246479,-1015.91279629,0.00014,2]
[331687910,1720642246490,-596.79156854,0.00014,2]
[331687911,1720642246503,-2439.94300744,0.00014,2]
[331687912,1720642246515,-956.17199593,0.00014,2]
[331687913,1720642246526,-3222.38164255,0.00014,2]
[331687914,1720642246538,-506.28464956,0.00014,2]
[331687915,1720642246551,-11823.59982305,0.00014,2]
[331687916,1720642246562,-1671.17631581,0.00014,2]
[331687917,1720642246574,-1740.74654837,0.00014,2]
[331687918,1720642246589,-430.18684934,0.00014,2]
[331687919,1720642246600,-430.09096335,0.00014,2]
[331687920,1720642246611,-346.76974357,0.00014,2]
[331687921,1720642246623,-553.56974129,0.00014,2]
[331687922,1720642246635,-104446.64236568,0.00014,2]
[331687923,1720642246647,-55951.14542469,0.00014,2]
[331687924,1720642246658,-458.27649239,0.00014,2]
[331687925,1720642246669,-30861.97877135,0.00014,2]
[331687926,1720642246681,-3693.93006249,0.00014,2]
[331687927,1720642246693,-4281.62023915,0.00014,2]
[331687928,1720642246704,-471.01190175,0.00014,2]
[331687929,1720642246716,-3885.10398628,0.00014,2]
[331687930,1720642246728,-51190.67041067,0.00014,2]
[331687931,1720642246739,-11053.76194839,0.00014,2]
[331687932,1720642246751,-3172.45,0.00014,2]
[331687933,1720642246763,-1481.68457325,0.00014,2]
[331687934,1720642246780,-527.0,0.00014,2]
[331687935,1720642246790,-123258.70194249,0.00014,2]
[331687936,1720642246802,-132188.0,0.00014,2]
[331687937,1720642246813,-3476.2185258,0.00014,2]
[331687938,1720642246825,-22709.48189385,0.00014,2]
[331687939,1720642246836,-585.79333653,0.00014,2]
[331687940,1720642396463,500.0,0.00025119,120]
[331687941,1720642587800,714.61419842,0.00011199,2]
[331687942,1720642659672,18797.64158307,0.00011199,2]
[331687943,1720642660347,36884.34129068,0.00011199,2]
[331687944,1720642757988,3000.0,0.0001,2]
[331687945,1720642764673,12953.70636393,0.00011199,2]
[331687946,1720642773746,3148.0,0.0001,2]
[331687947,1720642784630,3000.0,0.0001,2]
[331687948,1720642784941,23866.19327222,0.00011199,2]
[331687949,1720642825358,123153.23773867,0.00011199,2]
[331687950,1720642877158,390.52,0.00010445,2]
[331687951,1720642921708,155.42487312,0.00011199,2]
[331687952,1720642935338,257.80184351,0.00011143,2]
[331687953,1720642940728,7000.0,0.00011199,2]
[331687954,1720642988811,5000.0,0.00027,120]
[331687955,1720643035618,155.0,0.00011199,2]
[331687956,1720643053409,789.28939538,0.00011199,2]
[331687957,1720643071467,369.18293041,0.00011199,2]
[331687958,1720643081979,155.4020911,0.00011199,2]
[331687959,1720643092765,4847.54696968,0.00011199,2]
[331687960,1720643101716,174.02504748,0.00011199,2]
[331687961,1720643101774,334.75251365,0.00011199,2]
[331687962,1720643116631,155.0,0.00011199,2]
[331687963,1720643124686,544.84128592,0.00011199,2]
[331687964,1720643126220,155.0,0.00011199,2]
[331687965,1720643128859,3491.10182243,0.00011199,2]
[331687966,1720643140761,157.23374837,0.00011199,2]
[331687967,1720643141624,3000.000001,0.00011199,2]
[331687969,1720643155899,159.9452446,0.00011199,2]
[331687970,1720643155931,378.18292746,0.00011199,2]
[331687971,1720643162279,151.071105,0.00025,63]
[331687972,1720643163926,151.071105,0.00025,63]
[331687973,1720643167318,431.26485321,0.00011199,2]
[331687974,1720643167863,151.071105,0.00025,63]
[331687975,1720643171857,151.071105,0.00025,64]
[331687976,1720643172825,151.071105,0.00025,64]
[331687977,1720643173917,151.071105,0.00025,64]
[331687978,1720643177830,151.071105,0.00025,65]
[331687979,1720643178866,151.071105,0.00025,65]
[331687980,1720643179874,151.071105,0.00025,65]
[331687981,1720643187936,151.071105,0.00025,66]
[331687982,1720643188946,151.071105,0.00025,66]
[331687983,1720643190596,500.0,0.00027,120]
[331687984,1720643194316,248.13765487,0.00011199,2]
[331687985,1720643213304,473.99379803,0.00011199,2]
[331687986,1720643227031,23286.60844876,0.00011199,2]
[331687987,1720643227449,151.071105,0.00025,70]
[331687988,1720643228391,151.071105,0.00025,70]
[331687989,1720643229085,151.071105,0.00025,70]
[331688009,1720643232332,151.071105,0.00025,71]
[331688010,1720643233321,151.071105,0.00025,71]
[331688011,1720643234267,151.071105,0.00025,71]
[331688012,1720643237450,151.071105,0.00025,72]
[331688013,1720643238477,151.071105,0.00025,72]
[331688014,1720643239453,151.071105,0.00025,72]
[331688015,1720643241222,163.90445823,0.00011199,2]
[331688016,1720643243101,151.071105,0.00025,73]
[331688017,1720643244108,151.071105,0.00025,73]
[331688018,1720643244918,151.071105,0.00025,73]
[331688019,1720643260134,250.0,0.00011975,2]
[331688020,1720643284416,3029.1863234,0.00011199,2]
[331688021,1720643297889,310.0,0.00011199,2]
[331688022,1720643315669,155.0,0.00011199,2]
[331688026,1720643367004,520.44202929,0.00011199,2]
[331688027,1720643380962,305.78334679,0.00011199,2]
[331688028,1720643418533,790.31969079,0.00011199,2]
[331688029,1720643419623,155.0,0.00011199,2]
[331688030,1720643424755,18246.67208275,0.00011199,2]
[331688031,1720643427356,403.4,0.00010006,2]
[331688032,1720643430636,155.0,0.00011199,2]
[331688064,1720643432380,-330.0,0.00012054,2]
[331688065,1720643432392,-193.6,0.00012267,2]
[331688066,1720643432401,-403.4,0.0001227,2]
[331688067,1720643432411,-1162.9,0.00012286,2]
[331688068,1720643432421,-1000.0,0.00012295,2]
[331688069,1720643432431,-250.0,0.00012295,2]
[331688070,1720643432441,-519.15175191,0.00012302,2]
[331688071,1720643432450,-1441.6,0.00012303,2]
[331688072,1720643432460,-327.52608475,0.00012314,2]
[331688073,1720643432469,-200.0,0.00012354,2]
[331688074,1720643432478,-167.12,0.00012397,2]
[331688075,1720643432488,-941.62,0.00012397,2]
[331688076,1720643432497,-150.0,0.000126,2]
[331688077,1720643432506,-4229.37,0.00012742,2]
[331688078,1720643432516,-219.87,0.00012746,2]
[331688079,1720643432526,-200.0,0.00012942,2]
[331688080,1720643432535,-2624.24139058,0.0001299,2]
[331688081,1720643432544,-150.0,0.00012999,2]
[331688082,1720643432554,-500.0,0.00013,2]
[331688083,1720643432563,-500.0,0.00013,2]
[331688084,1720643432573,-500.0,0.00013,2]
[331688085,1720643432582,-500.0,0.00013,2]
[331688086,1720643432591,-500.0,0.00013,2]
[331688087,1720643432601,-500.0,0.00013,2]
[331688088,1720643432610,-500.0,0.00013,2]
[331688089,1720643432619,-500.0,0.00013,2]
[331688090,1720643432629,-500.0,0.00013,2]
[331688091,1720643432638,-500.0,0.00013,2]
[331688092,1720643432647,-500.0,0.00013,2]
[331688093,1720643432656,-500.0,0.00013,2]
[331688094,1720643432666,-500.0,0.00013,2]
[331688095,1720643432675,-500.0,0.00013,2]
[331688097,1720643432684,-500.0,0.00013,2]
[331688099,1720643432694,-500.0,0.00013,2]
[331688101,1720643432703,-500.0,0.00013,2]
[331688103,1720643432712,-500.0,0.00013,2]
[331688105,1720643432721,-500.0,0.00013,2]
[331688106,1720643432731,-500.0,0.00013,2]
[331688107,1720643432740,-500.0,0.00013,2]
[331688108,1720643432749,-500.0,0.00013,2]
[331688109,1720643432758,-500.0,0.00013,2]
[331688110,1720643432768,-500.0,0.00013,2]
[331688111,1720643432777,-500.0,0.00013,2]
[331688112,1720643432787,-500.0,0.00013,2]
[331688113,1720643432797,-500.0,0.00013,2]
[331688114,1720643432806,-500.0,0.00013,2]
[331688115,1720643432815,-500.0,0.00013,2]
[331688116,1720643432825,-500.0,0.00013,2]
[331688117,1720643432834,-500.0,0.00013,2]
[331688118,1720643432843,-500.0,0.00013,2]
[331688119,1720643432855,-500.0,0.00013,2]
[331688120,1720643432864,-500.0,0.00013,2]
[331688121,1720643432873,-500.0,0.00013,2]
[331688122,1720643432883,-500.0,0.00013,2]
[331688123,1720643432892,-500.0,0.00013,2]
[331688124,1720643432901,-500.0,0.00013,2]
[331688125,1720643432911,-500.0,0.00013,2]
[331688126,1720643432920,-500.0,0.00013,2]
[331688127,1720643432929,-500.0,0.00013,2]
[331688128,1720643432938,-500.0,0.00013,2]
[331688129,1720643432947,-500.0,0.00013,2]
[331688130,1720643432957,-500.0,0.00013,2]
[331688131,1720643432967,-500.0,0.00013,2]
[331688132,1720643432975,-500.0,0.00013,2]
[331688133,1720643432985,-500.0,0.00013,2]
[331688134,1720643432994,-500.0,0.00013,2]
[331688135,1720643433003,-500.0,0.00013,2]
[331688136,1720643433012,-500.0,0.00013,2]
[331688137,1720643433022,-500.0,0.00013,2]
[331688138,1720643433031,-500.0,0.00013,2]
[331688139,1720643433040,-500.0,0.00013,2]
[331688140,1720643433049,-500.0,0.00013,2]
[331688141,1720643433058,-500.0,0.00013,2]
[331688142,1720643433067,-500.0,0.00013,2]
[331688143,1720643433076,-500.0,0.00013,2]
[331688144,1720643433086,-500.0,0.00013,2]
[331688145,1720643433095,-500.0,0.00013,2]
[331688146,1720643433106,-500.0,0.00013,2]
[331688147,1720643433115,-500.0,0.00013,2]
[331688148,1720643433124,-500.0,0.00013,2]
[331688149,1720643433133,-500.0,0.00013,2]
[331688150,1720643433143,-500.0,0.00013,2]
[331688151,1720643433152,-500.0,0.00013,2]
[331688152,1720643433161,-500.0,0.00013,2]
[331688153,1720643433171,-500.0,0.00013,2]
[331688154,1720643433180,-500.0,0.00013,2]
[331688155,1720643433190,-500.0,0.00013,2]
[331688156,1720643433199,-500.0,0.00013,2]
[331688157,1720643433209,-500.0,0.00013,2]
[331688158,1720643433218,-500.0,0.00013,2]
[331688159,1720643433227,-500.0,0.00013,2]
[331688160,1720643433237,-500.0,0.00013,2]
[331688161,1720643433247,-500.0,0.00013,2]
[331688162,1720643433257,-500.0,0.00013,2]
[331688163,1720643433267,-500.0,0.00013,2]
[331688164,1720643433276,-500.0,0.00013,2]
[331688165,1720643433286,-500.0,0.00013,2]
[331688166,1720643433296,-500.0,0.00013,2]
[331688167,1720643433305,-500.0,0.00013,2]
[331688168,1720643433315,-500.0,0.00013,2]
[331688169,1720643433325,-500.0,0.00013,2]
[331688172,1720643433335,-500.0,0.00013,2]
[331688174,1720643433345,-500.0,0.00013,2]
[331688176,1720643433357,-500.0,0.00013,2]
[331688177,1720643433367,-500.0,0.00013,2]
[331688179,1720643433376,-500.0,0.00013,2]
[331688181,1720643433385,-500.0,0.00013,2]
[331688183,1720643433395,-500.0,0.00013,2]
[331688184,1720643433404,-500.0,0.00013,2]
[331688185,1720643433413,-500.0,0.00013,2]
[331688186,1720643433423,-500.0,0.00013,2]
[331688187,1720643433433,-500.0,0.00013,2]
[331688188,1720643433442,-500.0,0.00013,2]
[331688189,1720643433451,-500.0,0.00013,2]
[331688190,1720643433461,-500.0,0.00013,2]
[331688191,1720643433471,-500.0,0.00013,2]
[331688192,1720643433480,-500.0,0.00013,2]
[331688193,1720643433489,-324.03,0.00013,2]
[331688194,1720643433498,-500.0,0.00013,2]
[331688195,1720643433508,-500.0,0.00013,2]
[331688196,1720643433517,-500.0,0.00013,2]
[331688197,1720643433526,-500.0,0.00013,2]
[331688198,1720643433536,-500.0,0.00013,2]
[331688199,1720643433545,-500.0,0.00013,2]
[331688200,1720643433555,-500.0,0.00013,2]
[331688201,1720643433565,-500.0,0.00013,2]
[331688202,1720643433575,-500.0,0.00013,2]
[331688203,1720643433584,-500.0,0.00013,2]
[331688204,1720643433594,-500.0,0.00013,2]
[331688205,1720643433604,-500.0,0.00013,2]
[331688206,1720643433613,-500.0,0.00013,2]
[331688207,1720643433623,-500.0,0.00013,2]
[331688208,1720643433633,-500.0,0.00013,2]
[331688209,1720643433643,-500.0,0.00013,2]
[331688210,1720643433653,-500.0,0.00013,2]
[331688211,1720643433663,-500.0,0.00013,2]
[331688212,1720643433673,-500.0,0.00013,2]
[331688213,1720643433683,-500.0,0.00013,2]
[331688214,1720643433693,-3519.0,0.00013,2]
[331688215,1720643433703,-500.0,0.00013,2]
[331688216,1720643433713,-500.0,0.00013,2]
[331688217,1720643433723,-500.0,0.00013,2]
[331688218,1720643433733,-500.0,0.00013,2]
[331688219,1720643433742,-500.0,0.00013,2]
[331688220,1720643433752,-500.0,0.00013,2]
[331688221,1720643433761,-500.0,0.00013,2]
[331688222,1720643433771,-500.0,0.00013,2]
[331688223,1720643433780,-500.0,0.00013,2]
[331688224,1720643433790,-500.0,0.00013,2]
[331688225,1720643433800,-500.0,0.00013,2]
[331688226,1720643433810,-163.2,0.00013,2]
[331688227,1720643433819,-500.0,0.00013,2]
[331688228,1720643433829,-500.0,0.00013,2]
[331688229,1720643433839,-500.0,0.00013,2]
[331688230,1720643433849,-500.0,0.00013,2]
[331688231,1720643433859,-500.0,0.00013,2]
[331688232,1720643433869,-500.0,0.00013,2]
[331688233,1720643433879,-500.0,0.00013,2]
[331688234,1720643433888,-500.0,0.00013,2]
[331688235,1720643433898,-500.0,0.00013,2]
[331688236,1720643433908,-500.0,0.00013,2]
[331688237,1720643433917,-500.0,0.00013,2]
[331688238,1720643433927,-500.0,0.00013,2]
[331688239,1720643433937,-500.0,0.00013,2]
[331688240,1720643433948,-500.0,0.00013,2]
[331688241,1720643433958,-500.0,0.00013,2]
[331688242,1720643433968,-500.0,0.00013,2]
[331688243,1720643433978,-500.0,0.00013,2]
[331688244,1720643433988,-500.0,0.00013,2]
[331688245,1720643433998,-500.0,0.00013,2]
[331688246,1720643434007,-500.0,0.00013,2]
[331688247,1720643434017,-500.0,0.00013,2]
[331688248,1720643434026,-500.0,0.00013,2]
[331688249,1720643434035,-500.0,0.00013,2]
[331688250,1720643434045,-500.0,0.00013,2]
[331688251,1720643434054,-500.0,0.00013,2]
[331688252,1720643434063,-500.0,0.00013,2]
[331688253,1720643434072,-500.0,0.00013,2]
[331688254,1720643434082,-500.0,0.00013,2]
[331688255,1720643434091,-500.0,0.00013,2]
[331688256,1720643434101,-500.0,0.00013,2]
[331688257,1720643434111,-1250.0,0.00013,2]
[331688258,1720643434120,-200.0,0.000131,4]
[331688259,1720643434129,-5000.0,0.00013128,2]
[331688260,1720643434138,-292.54926927,0.00013128,2]
[331688261,1720643434148,-390.91214695,0.00013128,2]
[331688262,1720643434157,-500.0,0.000132,4]
[331688263,1720643434168,-10000.0,0.000133,2]
[331688264,1720643434178,-800.0,0.000133,4]
[331688265,1720643434188,-1224.38607,0.00013351,2]
[331688266,1720643434197,-1000.0,0.000134,4]
[331688267,1720643434207,-1055.92728241,0.00013472,2]
[331688268,1720643434217,-1300.0,0.000135,4]
[331688269,1720643434227,-891.5368913,0.00013516,2]
[331688270,1720643434237,-955.85753929,0.00013516,2]
[331688271,1720643434247,-156.02718388,0.00013516,2]
[331688272,1720643434257,-1224.38607,0.00013518,2]
[331688273,1720643434268,-155.40245822,0.00013543,2]
[331688274,1720643434278,-889.29811363,0.00013574,2]
[331688275,1720643434288,-1253.99426123,0.00013574,2]
[331688276,1720643434298,-305.78334679,0.00013574,2]
[331688277,1720643434307,-200.0,0.000136,4]
[331688278,1720643434317,-5875.227,0.0001366,2]
[331688279,1720643434328,-1224.38607,0.00013685,2]
[331688280,1720643434338,-250.0,0.00013699,2]
[331688281,1720643434349,-200.0,0.000137,5]
[331688282,1720643434361,-1631.04293426,0.00013736,2]
[331688283,1720643434371,-500.0,0.00013759,2]
[331688284,1720643434381,-500.0,0.00013759,2]
[331688285,1720643434391,-500.0,0.00013759,2]
[331688286,1720643434400,-500.0,0.00013759,2]
[331688287,1720643434411,-2317.69,0.00013759,2]
[331688288,1720643434420,-1576.79,0.00013759,2]
[331688289,1720643434430,-100000.0,0.0001376,2]
[331688290,1720643434441,-869.06337306,0.00013799,2]